bitfinex-derivatives/quotes_SOLF0:USTF0_20250110
["timestamp","ask_amount","ask_price","bid_price","bid_amount"]
[1736467640038,2.6884,185.99,185.92,2.6894]
[1736467644539,2.6884,185.99,185.9,20.00732623]
[1736467644839,2.6886,185.98,185.9,20.00732623]
[1736467645944,2.6886,185.98,185.92,2.6894]
[1736467646140,9.7502,186.01,185.9,20.00732623]
[1736467646637,2.6885,185.99,185.93,2.6891]
[1736467647440,2.6885,185.99,185.93,12.49741523]
[1736467647640,2.6885,185.99,185.94,2.6891]
[1736467649447,12.4384,186.01,185.95,2.689]
[1736467649644,9.7502,186.01,185.95,2.689]
[1736467649839,2.6883,186.0,185.94,2.6891]
[1736467650045,12.49741523,186.12,185.86,5.02]
[1736467650046,5.0,186.07,185.96,12.49741523]
[1736467650246,0.85287307,186.06,185.96,12.49741523]
[1736467650450,2.6882,186.01,185.86,5.02]
[1736467650644,2.6882,186.01,185.95,12.49741523]
[1736467650945,2.688,186.02,185.96,2.6888]
[1736467651146,17.49741523,186.07,185.95,12.49741523]
[1736467651343,17.49741523,186.07,185.86,5.02]
[1736467651547,2.6879,186.03,185.97,2.6887]
[1736467652540,2.688,186.02,185.97,2.6887]
[1736467652850,2.688,186.02,185.96,15.18621523]
[1736467653451,17.49741523,186.07,185.96,12.49741523]
[1736467653654,0.8529371,186.06,185.86,5.02]
[1736467653948,0.8529371,186.06,185.85,12.49741523]
[1736467653949,12.49741523,186.04,185.92,12.49741523]
[1736467654246,12.49741523,186.07,185.95,12.49741523]
[1736467654447,5.0,186.06,185.95,12.49741523]
[1736467654648,2.688,186.02,185.96,2.6888]
[1736467658253,2.6881,186.01,185.96,2.6888]
[1736467659354,5.0,186.06,185.96,2.6888]
[1736467659548,2.688,186.02,185.96,2.6888]
[1736467660049,2.6881,186.01,185.96,2.6888]
[1736467660246,12.49741523,186.04,185.93,2.6892]
[1736467660445,2.6887,185.97,185.91,12.49741523]
[1736467660653,12.49741523,186.04,185.92,2.6894]
[1736467660851,0.85308851,186.03,185.92,2.6894]
[1736467661048,12.49741523,186.01,185.87,4.96]
[1736467661253,3.2066,186.0,185.9,15.18711523]
[1736467661449,3.2066,186.0,185.9,12.49741523]
[1736467661646,2.6891,185.95,185.9,12.49741523]
[1736467663451,2.6891,185.94,185.9,12.49741523]
[1736467663761,12.49741523,185.98,185.87,12.49741523]
[1736467664053,12.49741523,185.98,185.84,12.49741523]
[1736467664256,12.49741523,185.95,185.84,12.49741523]
[1736467664656,2.6899,185.89,185.84,12.49741523]
[1736467665258,2.6899,185.89,185.81,12.49741523]
[1736467666463,2.6899,185.89,185.83,2.6907]
[1736467667561,2.69,185.88,185.83,2.6907]
[1736467667763,2.69,185.88,185.81,12.49741523]
[1736467667961,2.69,185.88,185.82,2.6908]
[1736467668861,3.2066,186.0,185.81,12.49741523]
[1736467668862,12.49741523,185.92,185.81,12.49741523]
[1736467669066,2.6904,185.86,185.81,12.49741523]
[1736467669761,2.6904,185.86,185.81,15.18831523]
[1736467669962,2.6909,185.82,185.78,12.49741523]
[1736467670168,12.49741523,185.86,185.75,2.6918]
[1736467671262,2.6908,185.83,185.75,2.6918]
[1736467671464,12.49741523,185.86,185.75,2.6918]
[1736467672160,12.49741523,185.86,185.73,12.49741523]
[1736467672161,2.691,185.82,185.76,2.6917]
[1736467673762,12.49741523,185.86,185.76,2.6917]
[1736467673763,2.691,185.81,185.76,2.6917]
[1736467675367,2.6912,185.8,185.76,2.6917]
[1736467675967,2.6912,185.8,185.75,2.6918]
[1736467676667,2.6912,185.8,185.73,12.49741523]
[1736467676865,2.6912,185.8,185.76,2.6917]
[1736467677059,2.6909,185.82,185.76,12.49741523]
[1736467677260,17.41741523,185.89,185.79,2.6912]
[1736467677863,2.6906,185.84,185.79,2.6912]
[1736467679465,17.41741523,185.89,185.79,2.6912]
[1736467679660,17.41741523,185.89,185.78,2.6914]
[1736467679868,0.85371819,185.88,185.78,2.6914]
[1736467680060,2.6904,185.85,185.78,2.6914]
[1736467680262,2.6904,185.85,185.79,2.6913]
[1736467680468,17.41741523,185.89,185.76,12.49741523]
[1736467680771,17.41741523,185.89,185.78,2.6913]
[1736467681072,17.41741523,185.89,185.76,12.49741523]
[1736467681272,2.6905,185.85,185.79,2.6912]
[1736467681770,17.41741523,185.89,185.79,2.6912]
[1736467682166,2.6903,185.86,185.79,2.6912]
[1736467682366,17.41741523,185.89,185.76,12.49741523]
[1736467682567,3.0079,185.91,185.79,12.49741523]
[1736467682873,3.0079,185.91,185.82,12.49741523]
[1736467683762,2.6899,185.89,185.83,2.6906]
[1736467683962,2.6899,185.89,185.82,12.49741523]
[1736467685172,2.6899,185.89,185.83,2.6907]
[1736467685472,2.6899,185.89,185.82,12.49741523]
[1736467686474,2.6899,185.89,185.83,2.6907]
[1736467687671,3.0079,185.91,185.79,12.49741523]
[1736467688070,12.49741523,185.89,185.76,12.49741523]
[1736467689272,12.49741523,185.89,185.79,2.6913]
[1736467690672,2.6905,185.85,185.79,2.6913]
[1736467692078,2.6905,185.85,185.76,12.49741523]
[1736467692879,2.6906,185.84,185.76,12.49741523]
[1736467694579,12.49741523,185.86,185.76,12.49741523]
[1736467694782,12.49741523,185.86,185.73,12.49741523]
[1736467695076,12.49741523,185.83,185.73,12.49741523]
[1736467695378,2.6914,185.79,185.75,2.6919]
[1736467696178,2.6915,185.78,185.75,2.6919]
[1736467696379,2.6915,185.78,185.74,40.84323886]
[1736467697379,3.1057,185.82,185.73,2.6921]
[1736467697582,12.49741523,185.8,185.67,12.49741523]
[1736467697779,4.86,185.79,185.67,12.49741523]
[1736467697979,2.6918,185.76,185.71,2.6923]
[1736467698280,2.6918,185.76,185.67,12.49741523]
[1736467698680,4.86,185.79,185.71,2.6923]
[1736467698873,2.6919,185.75,185.71,2.6923]
[1736467699275,4.86,185.79,185.7,2.6926]
[1736467699477,2.692,185.74,185.7,2.6926]
[1736467699783,4.86,185.79,185.71,2.6924]
[1736467699984,2.6919,185.75,185.71,2.6924]
[1736467700585,2.6922,185.73,185.7,2.6926]
[1736467700880,2.6922,185.73,185.67,12.49741523]
[1736467701088,2.6919,185.75,185.71,2.6924]
[1736467702184,4.86,185.79,185.67,12.49741523]
[1736467702382,2.6918,185.76,185.67,12.49741523]
[1736467702989,2.6918,185.76,185.71,2.6923]
[1736467703485,4.86,185.79,185.71,2.6923]
[1736467703685,2.6919,185.75,185.71,2.6923]
[1736467704881,4.86,185.79,185.67,12.49741523]
[1736467705088,2.6922,185.73,185.67,12.49741523]
[1736467705485,12.49741523,185.77,185.66,7.49601794]
[1736467705987,12.49741523,185.77,185.66,10.18911794]
[1736467706488,12.49741523,185.74,185.66,7.49601794]
[1736467706687,3.1636,185.73,185.66,7.49601794]
[1736467706884,2.6925,185.71,185.66,7.49601794]
[1736467707589,2.6925,185.71,185.66,10.18911794]
[1736467708380,2.6925,185.71,185.66,2.6931]
[1736467708690,3.1636,185.73,185.66,2.6931]
[1736467708894,2.6925,185.71,185.66,2.6931]
[1736467714722,2.6929,185.68,185.63,2.6936]
[1736467714996,12.49741523,185.71,185.61,12.49741523]
[1736467715303,2.693,185.67,185.62,2.6937]
[1736467716295,12.49741523,185.71,185.58,12.49741523]
[1736467716495,12.49741523,185.71,185.61,2.6939]
[1736467717185,2.6932,185.66,185.61,2.6939]
[1736467718893,12.49741523,185.68,185.58,12.49741523]
[1736467719088,12.49741523,185.68,185.55,7.98443173]
[1736467719396,12.49741523,185.68,185.55,20.48184696]
[1736467719693,2.6936,185.64,185.58,2.6943]
[1736467719890,2.6936,185.64,185.55,20.48184696]
[1736467720596,2.6936,185.64,185.59,2.6942]
[1736467721295,2.6936,185.64,185.6,8.02830278]
[1736467722497,2.6936,185.64,185.59,2.6942]
[1736467722996,2.6929,185.69,185.64,2.6934]
[1736467723192,4.7117,185.73,185.67,8.02830278]
[1736467723193,4.8,185.71,185.67,8.02830278]
[1736467723696,4.7117,185.73,185.67,8.02830278]
[1736467724091,2.6925,185.71,185.67,8.02830278]
[1736467725292,2.6925,185.71,185.57,4.82]
[1736467725293,2.6925,185.71,185.65,2.6933]
[1736467725493,2.6929,185.69,185.64,12.53473866]
[1736467725694,17.24643866,185.73,185.61,15.22863866]
[1736467725894,17.24643866,185.73,185.57,4.82]
[1736467725895,12.53473866,185.7,185.58,12.53473866]
[1736467726094,2.6937,185.63,185.55,20.51917039]
[1736467726297,2.6937,185.63,185.57,2.6944]
[1736467726493,3.3164,185.66,185.57,2.6944]
[1736467726898,1.5676,185.65,185.57,2.6944]
[1736467727194,2.6937,185.63,185.58,2.6943]
[1736467728597,1.5676,185.65,185.55,20.51917039]
[1736467728800,2.6938,185.62,185.57,2.6944]
[1736467729802,2.6941,185.6,185.55,2.6948]
[1736467730808,12.53473866,185.64,185.55,2.6948]
[1736467731008,12.53473866,185.64,185.52,12.53473866]
[1736467731808,2.6944,185.58,185.52,12.53473866]
[1736467733110,2.6944,185.58,185.54,2.6949]
[1736467735507,2.6945,185.57,185.54,2.6949]
[1736467735805,2.6945,185.57,185.49,12.53473866]
[1736467736005,12.53473866,185.61,185.49,12.53473866]
[1736467736205,2.6946,185.57,185.49,12.53473866]
[1736467736807,4.8,185.6,185.49,12.53473866]
[1736467736808,12.53473866,185.58,185.49,12.53473866]
[1736467737007,1.6465,185.57,185.46,12.53473866]
[1736467737204,1.6465,185.57,185.49,2.6956]
[1736467737507,2.6951,185.54,185.49,2.6956]
[1736467737699,1.6465,185.57,185.49,2.6956]
[1736467737904,2.6951,185.53,185.49,2.6956]
[1736467739907,2.6952,185.52,185.4,4.8]
[1736467740106,4.8,185.52,185.38,7.47347817]
[1736467740304,1.546,185.51,185.41,12.53473866]
[1736467740506,1.546,185.51,185.43,2.6965]
[1736467741003,1.546,185.51,185.41,12.53473866]
[1736467741306,6.4465,185.57,185.48,12.53473866]
[1736467741508,6.4465,185.57,185.51,12.53473866]
[1736467741704,1.546,185.61,185.54,12.53473866]
[1736467741909,5.9635,185.65,185.57,12.53473866]
[1736467742104,3.2702,185.65,185.57,12.53473866]
[1736467742310,1.6075,185.65,185.6,12.53473866]
[1736467742606,1.546,185.67,185.63,12.53473866]
[1736467742807,6.4827,185.71,185.63,12.53473866]
[1736467743408,6.4827,185.71,185.6,12.53473866]
[1736467743612,2.6929,185.68,185.6,12.53473866]
[1736467743808,6.4827,185.71,185.6,12.53473866]
[1736467744211,2.6932,185.66,185.59,2.6942]
[1736467744408,12.53473866,185.69,185.57,15.22903866]
[1736467744716,12.53473866,185.69,185.57,12.53473866]
[1736467746116,2.6932,185.66,185.59,2.6942]
[1736467746910,2.6934,185.65,185.58,2.6943]
[1736467747214,12.53473866,185.69,185.57,12.53473866]
[1736467748315,2.6936,185.64,185.57,15.22923866]
[1736467748618,12.53473866,185.69,185.57,12.53473866]
[1736467749115,2.6936,185.63,185.54,12.53473866]
[1736467749315,12.53473866,185.66,185.54,12.53473866]
[1736467749507,2.6939,185.61,185.54,15.22953866]
[1736467749714,4.8,185.64,185.54,15.22953866]
[1736467750014,4.8,185.64,185.54,12.53473866]
[1736467751217,4.8,185.64,185.57,12.53473866]
[1736467751911,3.1201,185.65,185.57,12.53473866]
[1736467752114,3.1201,185.65,185.6,2.694]
[1736467752312,3.1201,185.65,185.57,12.53473866]
[1736467753511,2.6935,185.64,185.58,2.6943]
[1736467753718,3.1201,185.65,185.54,12.53473866]
[1736467754810,2.6938,185.62,185.56,2.6945]
[1736467756220,3.1201,185.65,185.54,12.53473866]
[1736467756420,3.1201,185.65,185.57,12.53473866]
[1736467757214,3.1201,185.65,185.6,2.6939]
[1736467757814,2.693,185.68,185.63,2.6936]
[1736467758022,4.82,185.7,185.63,2.6936]
[1736467758421,4.82,185.7,185.6,12.53473866]
[1736467760216,2.6929,185.68,185.62,2.6937]
[1736467760618,1.6627,185.71,185.6,12.53473866]
[1736467760821,2.6927,185.7,185.64,2.6933]
[1736467761012,2.6927,185.7,185.6,12.53473866]
[1736467761216,1.6627,185.71,185.6,12.53473866]
[1736467762223,2.6928,185.69,185.6,12.53473866]
[1736467762418,1.6627,185.71,185.6,12.53473866]
[1736467762818,2.6926,185.7,185.63,2.6936]
[1736467763024,2.6926,185.7,185.6,12.53473866]
[1736467763421,2.6926,185.7,185.64,2.6934]
[1736467765225,2.6928,185.69,185.64,2.6934]
[1736467765521,14.19743866,185.71,185.6,12.53473866]
[1736467765721,2.6931,185.67,185.6,12.53473866]
[1736467766326,2.6931,185.67,185.61,2.6938]
[1736467766625,12.53473866,185.68,185.53,195.0]
[1736467766827,3.1688,185.67,185.53,207.53473866]
[1736467767026,2.6935,185.64,185.58,2.6942]
[1736467767227,3.1688,185.67,185.56,12.53473866]
[1736467767622,2.6933,185.65,185.56,12.53473866]
[1736467768326,5.8619,185.67,185.61,2.6938]
[1736467768928,5.8619,185.67,185.62,2.6938]
[1736467769732,1.5261,185.67,185.59,12.53473866]
[1736467769928,4.8,185.72,185.62,12.53473866]
[1736467770230,12.53473866,185.74,185.62,12.53473866]
[1736467770429,5.63231298,185.73,185.67,2.693]
[1736467770627,4.78,185.73,185.67,2.693]
[1736467771231,2.6921,185.74,185.65,12.53473866]
[1736467771431,3.1762,185.75,185.68,12.53473866]
[1736467771632,156.06578745,185.83,185.71,12.53473866]
[1736467771934,3.1762,185.82,185.71,12.53473866]
[1736467772231,3.1762,185.82,185.74,12.53473866]
[1736467772432,3.1762,185.82,185.76,2.6916]
[1736467772828,3.1762,185.82,185.74,12.53473866]
[1736467773029,4.93174084,185.87,185.78,2.6914]
[1736467773335,4.93174084,185.87,185.77,12.53473866]
[1736467775227,13.3878167,185.86,185.74,12.53473866]
[1736467775424,0.85307804,185.85,185.74,12.53473866]
[1736467776129,9.71174084,185.87,185.74,12.53473866]
[1736467776328,0.8529891,185.86,185.74,12.53473866]
[1736467776529,2.6905,185.85,185.77,12.53473866]
[1736467777126,2.6905,185.85,185.78,2.6914]
[1736467777833,2.6903,185.86,185.79,2.6913]
[1736467778735,9.71174084,185.87,185.77,12.53473866]
[1736467778937,9.71174084,185.87,185.77,15.22623866]
[1736467779536,2.6907,185.84,185.77,15.22623866]
[1736467780435,12.53473866,185.86,185.74,12.53473866]
[1736467780631,12.53473866,185.83,185.73,2.692]
[1736467781036,2.6913,185.8,185.73,2.692]
[1736467782129,12.53473866,185.83,185.71,12.53473866]
[1736467782333,2.691,185.81,185.74,2.692]
[1736467783341,2.6906,185.84,185.77,12.53473866]
[1736467784234,2.6906,185.84,185.78,2.6914]
[1736467784831,9.71174084,185.87,185.77,12.53473866]
[1736467785534,2.6907,185.84,185.77,15.22633866]
[1736467785739,9.71174084,185.87,185.77,15.22633866]
[1736467785934,0.85359636,185.86,185.77,15.22633866]
[1736467786240,2.6906,185.84,185.78,2.6914]
[1736467786435,9.71174084,185.87,185.77,12.53473866]
[1736467786838,2.6907,185.84,185.77,15.22633866]
[1736467787037,12.53473866,185.86,185.74,12.53473866]
[1736467787234,0.85354575,185.85,185.74,12.53473866]
[1736467787534,2.6911,185.81,185.74,15.22663866]
[1736467787734,2.6911,185.81,185.74,12.53473866]
[1736467788039,12.53473866,185.83,185.71,12.53473866]
[1736467788230,12.53473866,185.8,185.67,207.53473866]
[1736467788433,3.1835,185.79,185.67,207.53473866]
[1736467789054,12.53473866,185.77,185.67,207.53473866]
[1736467789336,2.6919,185.75,185.69,2.6926]
[1736467789735,12.53473866,185.77,185.67,207.53473866]
[1736467789937,12.53473866,185.77,185.67,12.53473866]
[1736467790538,12.53473866,185.77,185.67,15.22773866]
[1736467790539,2.6922,185.73,185.67,15.22773866]
[1736467790742,12.53473866,185.77,185.67,15.22773866]
[1736467791539,2.6922,185.73,185.67,15.22773866]
[1736467791945,12.53473866,185.77,185.68,2.6929]
[1736467792242,3.1835,185.79,185.67,12.53473866]
[1736467792741,12.53473866,185.77,185.67,12.53473866]
[1736467793236,2.6922,185.74,185.68,2.6928]
[1736467793640,2.6922,185.74,185.67,12.53473866]
[1736467793841,2.6918,185.76,185.67,12.53473866]
[1736467794047,4.78,185.78,185.67,12.53473866]
[1736467796342,2.6919,185.75,185.69,2.6926]
[1736467796843,4.78,185.78,185.69,2.6926]
[1736467797443,12.53473866,185.74,185.64,12.53473866]
[1736467797652,1.5616,185.73,185.64,12.53473866]
[1736467797945,2.6925,185.71,185.65,2.6932]
[1736467798134,1.5616,185.73,185.64,12.53473866]
[1736467798444,2.6924,185.72,185.66,2.6931]
[1736467798634,1.5616,185.73,185.66,2.6931]
[1736467798834,1.5616,185.73,185.64,12.53473866]
[1736467799238,1.5616,185.73,185.65,2.6933]
[1736467799239,2.6925,185.71,185.65,2.6933]
[1736467800641,2.6927,185.7,185.65,2.6933]
[1736467801545,12.53473866,185.71,185.58,12.53473866]
[1736467801745,3.0897,185.69,185.58,12.53473866]
[1736467802044,2.6935,185.65,185.59,2.6942]
[1736467802935,2.6935,185.65,185.58,12.53473866]
[1736467803137,5.7826,185.69,185.61,12.53473866]
[1736467803343,10.5626,185.69,185.61,12.53473866]
[1736467803846,5.7826,185.69,185.61,12.53473866]
[1736467804056,4.2727,185.69,185.61,12.53473866]
[1736467804240,1.5798,185.69,185.61,12.53473866]
[1736467804641,1.5798,185.69,185.64,2.6934]
[1736467805145,1.5798,185.69,185.63,2.6936]
[1736467805346,1.5798,185.69,185.61,12.53473866]
[1736467805546,3.1931,185.69,185.61,12.53473866]
[1736467805746,3.1931,185.69,185.61,15.22863866]
[1736467805943,2.6932,185.66,185.61,15.22863866]
[1736467806349,5.8859,185.69,185.63,2.6935]
[1736467806550,3.1931,185.69,185.63,2.6935]
[1736467806748,3.1931,185.69,185.61,12.53473866]
[1736467806949,2.693,185.67,185.62,2.6937]
[1736467807248,3.1931,185.69,185.58,12.53473866]
[1736467807948,2.6933,185.66,185.6,2.694]
[1736467810459,3.1931,185.69,185.58,12.53473866]
[1736467810660,4.76,185.7,185.61,12.53473866]
[1736467810955,4.76,185.7,185.66,2.6931]
[1736467812055,1.5616,185.73,185.67,12.53473866]
[1736467812260,2.692,185.74,185.67,12.53473866]
[1736467812457,4.76,185.77,185.67,12.53473866]
[1736467812770,1.5498,185.79,185.7,12.53473866]
[1736467813266,4.78,185.84,185.73,12.53473866]
[1736467813868,4.78,185.84,185.74,2.6919]
[1736467814067,4.78,185.84,185.73,12.53473866]
[1736467815069,2.6911,185.81,185.75,2.6919]
[1736467815480,4.78,185.84,185.75,2.6919]
[1736467815861,2.691,185.82,185.75,2.6919]
[1736467816670,2.6911,185.81,185.73,2.692]
[1736467816871,2.6911,185.81,185.72,20.03491297]
[1736467817469,2.691,185.81,185.74,2.692]
[1736467817665,4.78,185.84,185.67,20.03491297]
[1736467817868,0.85397391,185.83,185.72,2.6922]
[1736467818462,2.6914,185.79,185.73,2.6922]
[1736467818862,4.78,185.84,185.67,20.03491297]
[1736467819062,0.85404042,185.83,185.67,20.03491297]
[1736467819263,2.6912,185.8,185.74,2.6919]
[1736467820570,2.6912,185.8,185.7,20.03491297]
[1736467820571,2.691,185.81,185.75,2.6918]
[1736467821568,4.7316,185.86,185.73,20.03491297]
[1736467821767,4.7316,185.86,185.76,20.03491297]
[1736467821970,3.2141,185.86,185.76,20.03491297]
[1736467822168,4.76,185.89,185.79,20.03491297]
[1736467822876,2.69,185.88,185.82,2.6909]
[1736467823470,4.76,185.92,185.79,20.03491297]
[1736467824064,7.4495,185.92,185.86,2.6902]
[1736467824573,4.76,185.92,185.79,20.03491297]
[1736467824773,4.76,185.92,185.83,2.6906]
[1736467825171,2.6897,185.9,185.84,2.6906]
[1736467825378,4.7272,185.93,185.82,20.03491297]
[1736467825577,3.132,185.93,185.82,20.03491297]
[1736467826370,4.76,185.96,185.85,20.03491297]
[1736467826976,7.4489,185.96,185.89,2.6898]
[1736467828186,2.6891,185.94,185.89,2.6898]
[1736467828371,4.76,185.96,185.87,2.6901]
[1736467828877,3.2045,185.99,185.88,20.03491297]
[1736467829075,4.76,186.08,185.91,20.03491297]
[1736467829275,2.688,186.02,185.91,20.03491297]
[1736467829581,4.76,186.08,185.95,2.689]
[1736467829770,4.76,186.08,185.91,20.03491297]
[1736467829771,2.688,186.03,185.91,20.03491297]
[1736467829971,4.8055,186.09,185.99,2.6884]
[1736467830180,4.8055,186.09,185.97,20.03491297]
[1736467830480,2.6874,186.07,185.97,20.03491297]
[1736467830675,4.8055,186.09,186.01,2.6881]
[1736467830875,4.8055,186.09,185.97,20.03491297]
[1736467831771,2.6874,186.07,185.98,2.6884]
[1736467831972,4.8055,186.09,185.98,2.6884]
[1736467832375,2.6871,186.08,186.01,2.6881]
[1736467832574,4.8055,186.09,185.97,20.03491297]
[1736467832971,4.8055,186.09,185.94,20.03491297]
[1736467833270,20.03491297,186.08,185.94,20.03491297]
[1736467833470,2.6875,186.06,185.98,2.6885]
[1736467833675,20.03491297,186.08,185.98,2.6885]
[1736467834171,20.03491297,186.08,185.96,2.6888]
[1736467834574,4.8055,186.09,185.96,2.6888]
[1736467834776,2.6878,186.04,185.96,2.6888]
[1736467835175,4.8055,186.09,185.94,20.03491297]
[1736467835376,2.6875,186.06,185.99,2.6884]
[1736467835677,2.6875,186.06,185.94,20.03491297]
[1736467835678,4.8055,186.09,185.94,20.03491297]
[1736467836180,4.8055,186.09,185.97,20.03491297]
[1736467836780,2.6873,186.07,185.97,20.03491297]
[1736467837584,2.6873,186.07,186.0,2.6881]
[1736467837974,4.8055,186.09,185.97,20.03491297]
[1736467837975,3.1969,186.09,185.97,20.03491297]
[1736467838173,4.78,186.14,186.03,2.6878]
[1736467838381,0.85277153,186.13,186.03,2.6878]
[1736467838581,2.6869,186.1,186.03,2.6878]
[1736467839680,4.78,186.15,186.03,20.03491297]
[1736467839879,4.78,186.18,186.03,20.03491297]
[1736467840083,2.6866,186.12,186.04,2.6876]
[1736467840284,4.78,186.18,186.04,2.6876]
[1736467840474,0.85255055,186.17,186.03,20.03491297]
[1736467840677,2.6866,186.12,186.05,2.6875]
[1736467841078,4.6745,186.19,186.08,2.687]
[1736467841079,2.6862,186.15,186.08,2.687]
[1736467841281,9.4545,186.19,186.08,2.687]
[1736467841480,0.85245143,186.18,186.08,2.687]
[1736467841682,4.6745,186.19,186.08,2.687]
[1736467841983,4.6745,186.19,186.06,20.03491297]
[1736467842283,2.6863,186.14,186.06,20.03491297]
[1736467842584,2.6863,186.14,186.03,20.03491297]
[1736467842787,2.6863,186.14,186.07,2.6872]
[1736467843278,2.6862,186.15,186.06,2.6874]
[1736467843483,4.6745,186.19,186.06,2.6874]
[1736467843686,20.03491297,186.17,186.03,20.03491297]
[1736467844083,2.6868,186.1,186.04,2.6877]
[1736467844282,20.03491297,186.17,186.01,4.8]
[1736467844480,2.6871,186.09,186.0,2.6881]
[1736467844686,4.8,186.11,186.0,2.6881]
[1736467844987,3.055,186.1,186.0,2.6881]
[1736467845188,4.8,186.11,186.03,20.03491297]
[1736467845486,4.8,186.16,186.03,20.03491297]
[1736467845884,0.20345,186.2,186.09,20.03491297]
[1736467846187,0.20345,186.2,186.12,20.03491297]
[1736467846781,5e-05,186.2,186.18,20.03491297]
[1736467846988,5e-05,186.2,186.19,4.84]
[1736467847581,20.03491297,186.39,186.19,4.84]
[1736467847888,3.2909,186.35,186.2,4.84]
[1736467848084,2.6839,186.31,186.21,2.6851]
[1736467848281,15.53622597,186.48,186.22,20.03491297]
[1736467848481,20.03491297,186.38,186.22,20.03491297]
[1736467848784,4.9037,186.37,186.22,20.03491297]
[1736467848985,4.88,186.36,186.22,20.03491297]
[1736467849288,20.03491297,186.35,186.19,20.03491297]
[1736467849588,2.6841,186.29,186.21,2.6851]
[1736467850379,2.6843,186.28,186.19,20.03491297]
[1736467850586,4.88,186.36,186.19,20.03491297]
[1736467850785,20.03491297,186.32,186.16,20.03491297]
[1736467850986,20.03491297,186.29,186.12,20.03491297]
[1736467851290,6.517,186.28,186.12,20.03491297]
[1736467851792,3.1611,186.27,186.12,20.03491297]
[1736467852189,2.6852,186.21,186.14,2.6862]
[1736467852391,3.1611,186.27,186.12,20.03491297]
[1736467852792,3.1611,186.27,186.14,2.6862]
[1736467853885,2.6856,186.19,186.12,22.72131297]
[1736467854392,4.88,186.21,186.12,22.72131297]
[1736467854600,2.6854,186.2,186.12,22.72131297]
[1736467855791,2.6854,186.2,186.12,20.03491297]
[1736467855993,2.6854,186.2,186.13,2.6864]
[1736467856993,2.6855,186.19,186.13,2.6864]
[1736467857196,4.88,186.24,186.12,20.03491297]
[1736467857396,4.88,186.24,186.09,8.8385742]
[1736467857397,4.88,186.24,186.15,20.03491297]
[1736467857590,2.6852,186.22,186.15,20.03491297]
[1736467857792,4.88,186.24,186.15,20.03491297]
[1736467858799,2.6852,186.21,186.15,20.03491297]
[1736467860198,2.6852,186.21,186.15,22.72101297]
[1736467860400,4.88,186.24,186.12,20.03491297]
[1736467861098,4.88,186.24,186.13,2.6863]
[1736467861496,4.88,186.24,186.12,20.03491297]
[1736467861798,4.88,186.24,186.06,20.03491297]
[1736467861799,20.03491297,186.22,186.06,20.03491297]
[1736467862399,20.03491297,186.25,186.09,20.03491297]
[1736467862599,4.86,186.24,186.12,20.03491297]
[1736467862801,2.6853,186.21,186.14,2.6861]
[1736467863101,4.86,186.24,186.14,2.6861]
[1736467864002,2.6855,186.2,186.13,2.6864]
[1736467864200,4.86,186.24,186.09,20.03491297]
[1736467864696,4.86,186.24,186.12,20.03491297]
[1736467864898,4.9,186.23,186.12,20.03491297]
[1736467865403,4.9,186.23,186.16,12.46718567]
[1736467868902,2.6857,186.18,186.13,12.46718567]
[1736467870807,2.685,186.23,186.16,12.46718567]
[1736467871009,1.5258,186.27,186.16,12.46718567]
[1736467871302,1.5258,186.27,186.13,12.46718567]
[1736467871303,1.5258,186.27,186.19,12.46718567]
[1736467871504,1.5258,186.27,186.19,15.15258567]
[1736467871505,2.6848,186.24,186.19,15.15258567]
[1736467871702,2.6848,186.24,186.19,12.46718567]
[1736467872009,12.46718567,186.36,186.22,12.46718567]
[1736467872698,143.53104879,186.41,186.25,12.46718567]
[1736467872899,1.5258,186.39,186.28,12.46718567]
[1736467873304,2.6834,186.34,186.28,2.6841]
[1736467876007,2.6836,186.33,186.27,2.6844]
[1736467877803,1.6021,186.38,186.24,4.94]
[1736467877804,1.6021,186.38,186.31,19.92295352]
[1736467878009,1.5258,186.39,186.31,19.92295352]
[1736467878607,1.5258,186.39,186.28,19.92295352]